bitfinex/quotes_SOLUSD_20240604
["timestamp","ask_amount","ask_price","bid_price","bid_amount"]
[1717530398282,2.1918,168.81,168.75,37.7525]
[1717530398476,6.77,168.78,168.75,43.8215]
[1717530398888,6.77,168.79,168.76,2.1924]
[1717530399470,6.77,168.79,168.75,43.8215]
[1717530399782,6.77,168.79,168.75,59.4073]
[1717530400476,2.1917,168.82,168.75,53.3383]
[1717530400681,6.77,168.8,168.76,23.959]
[1717530400883,2.1916,168.83,168.76,59.519]
[1717530401085,6.77,168.8,168.76,59.519]
[1717530401284,7.44607966,168.83,168.76,41.8368]
[1717530401483,8.37496196,168.85,168.78,2.1921]
[1717530401696,17.108057,168.82,168.78,2.1921]
[1717530401904,6.77,168.82,168.77,2.1923]
[1717530402090,6.77,168.82,168.78,35.56]
[1717530402279,6.77,168.81,168.78,35.56]
[1717530402491,7.44607966,168.85,168.78,57.0935]
[1717530402492,9.63737966,168.85,168.78,57.0935]
[1717530402704,6.77,168.83,168.79,2.192]
[1717530403001,6.77,168.83,168.79,59.2855]
[1717530403301,6.77,168.83,168.79,57.0935]
[1717530403486,6.77,168.83,168.79,59.2855]
[1717530404089,6.77,168.83,168.79,57.0935]
[1717530404602,6.77,168.83,168.79,59.2855]
[1717530405070,6.77,168.83,168.79,57.0935]
[1717530405274,6.77,168.82,168.79,41.8043]
[1717530405713,6.77,168.82,168.79,43.9963]
[1717530406511,2.1912,168.86,168.79,43.9963]
[1717530406702,6.77,168.82,168.79,43.9963]
[1717530407512,6.77,168.83,168.8,2.1919]
[1717530407696,7.21766215,168.86,168.8,2.1919]
[1717530407895,6.77,168.83,168.8,2.1919]
[1717530409091,2.1911,168.87,168.8,44.0706]
[1717530409288,6.77,168.83,168.8,44.0706]
[1717530409489,9.40876215,168.87,168.8,44.0706]
[1717530409686,6.77,168.84,168.8,59.3884]
[1717530410390,9.40876215,168.87,168.8,59.3884]
[1717530410714,6.77,168.84,168.8,59.3884]
[1717530412097,9.40876215,168.87,168.8,59.3884]
[1717530412500,6.77,168.84,168.81,2.1918]
[1717530412902,7.21766215,168.87,168.81,2.1918]
[1717530413101,6.77,168.85,168.81,2.1918]
[1717530413411,6.77,168.85,168.8,37.7518]
[1717530413595,9.40866215,168.87,168.81,51.5462]
[1717530413918,6.77,168.85,168.82,6.0034]
[1717530414212,9.40866215,168.87,168.82,6.0034]
[1717530414410,7.21766215,168.87,168.82,6.0034]
[1717530414719,6.77,168.85,168.82,6.0034]
[1717530414913,6.18686084,168.89,168.82,6.0034]
[1717530415218,6.77,168.86,168.82,57.6917]
[1717530415393,6.77,168.86,168.82,59.8833]
[1717530415925,6.77,168.86,168.82,57.6917]
[1717530416296,6.77,168.85,168.82,57.6917]
[1717530417121,2.1909,168.88,168.82,57.6917]
[1717530417299,6.77,168.86,168.82,57.6917]
[1717530417691,6.77,168.86,168.83,6.1388]
[1717530418100,2.1909,168.88,168.83,6.1388]
[1717530418597,6.77,168.86,168.83,6.1388]
[1717530419104,6.77,168.86,168.83,41.6988]
[1717530419309,2.1907,168.9,168.83,60.1472]
[1717530419514,8.99475393,168.9,168.83,60.1472]
[1717530420318,6.77,168.89,168.83,66.9172]
[1717530420499,6.77,168.89,168.86,6.2028]
[1717530420696,6.77,168.9,168.86,57.3495]
[1717530420901,13.54,168.9,168.86,57.3495]
[1717530421521,6.77,168.9,168.86,57.3495]
[1717530421708,13.54,168.9,168.86,57.3495]
[1717530422023,6.77,168.89,168.86,57.3495]
[1717530422329,6.77,168.88,168.86,57.3495]
[1717530422531,6.77,168.87,168.84,42.0306]
[1717530422828,6.77,168.88,168.85,6.4706]
[1717530423036,8.9607,168.9,168.85,6.4706]
[1717530423240,6.77,168.88,168.85,42.0306]
[1717530423409,6.77,168.9,168.85,58.2939]
[1717530423612,6.77,168.9,168.86,58.204]
[1717530424221,2.1904,168.92,168.86,58.204]
[1717530424533,6.77,168.9,168.86,57.9372]
[1717530424715,2.1904,168.92,168.87,21.9897]
[1717530424920,6.77,168.9,168.87,21.9897]
[1717530425120,2.1903,168.93,168.87,57.5497]
[1717530425301,6.77,168.92,168.87,35.56]
[1717530425501,6.77,168.92,168.88,22.519]
[1717530426006,2.1902,168.93,168.88,22.519]
[1717530426206,6.77,168.92,168.89,41.9103]
[1717530426432,2.1902,168.93,168.89,41.9103]
[1717530426607,6.77,168.92,168.89,41.9103]
[1717530426808,3.0314249,168.94,168.89,41.9103]
[1717530427006,6.77,168.92,168.89,41.9103]
[1717530427731,6.77,168.92,168.89,57.6742]
[1717530428235,3.0315249,168.94,168.89,57.6742]
[1717530428438,0.8413249,168.94,168.89,57.6742]
[1717530428614,6.77,168.93,168.89,57.6742]
[1717530429514,0.8413249,168.94,168.91,6.0082]
[1717530429730,7.6113249,168.94,168.91,21.7721]
[1717530430040,0.8413249,168.94,168.91,21.7721]
[1717530430340,7.6113249,168.94,168.91,21.7721]
[1717530430743,6.77,168.93,168.91,6.0082]
[1717530431851,0.8413249,168.94,168.91,41.5682]
[1717530432038,7.6113249,168.94,168.91,57.8601]
[1717530432239,0.8413249,168.94,168.91,57.8601]
[1717530432459,0.8413249,168.94,168.92,42.1659]
[1717530434259,0.8413249,168.94,168.92,58.4578]
[1717530435247,0.8413249,168.94,168.92,35.56]
[1717530435448,0.8413249,168.94,168.93,57.6602]
[1717530438286,0.8413249,168.94,168.93,66.7904]
[1717530438450,0.8413249,168.94,168.93,77.9116]
[1717530439279,0.8413249,168.94,168.93,71.3409]
[1717530439476,0.8413249,168.94,168.93,104.4526]
[1717530440563,0.8413249,168.94,168.93,97.6826]
[1717530440957,0.8413249,168.94,168.93,104.4526]
[1717530441178,0.8413249,168.94,168.93,73.3319]
[1717530441485,0.8413249,168.94,168.93,86.6726]
[1717530442152,0.8413249,168.94,168.93,104.4526]
[1717530443765,0.8413249,168.94,168.93,97.6826]
[1717530444066,0.8413249,168.94,168.93,104.4526]
[1717530446067,0.8413249,168.94,168.93,97.6826]
[1717530446480,0.8413249,168.94,168.93,104.4526]
[1717530447663,0.8413249,168.94,168.93,35.56]
[1717530447868,0.8413249,168.94,168.93,37.7502]
[1717530448076,0.8413249,168.94,168.93,35.56]
[1717530448695,0.8413249,168.94,168.93,37.7502]
[1717530449062,0.8413249,168.94,168.93,35.56]
[1717530449269,0.8413249,168.94,168.9,37.7505]
[1717530449506,0.8413249,168.94,168.9,35.56]
[1717530449790,0.8413249,168.94,168.93,2.1902]
[1717530450876,0.8413249,168.94,168.93,224.2399]
[1717530451074,0.8413249,168.94,168.93,224.4099]
[1717530452489,0.8413249,168.94,168.93,217.6399]
[1717530452697,0.8413249,168.94,168.93,224.4099]
[1717530453084,0.8413249,168.94,168.93,37.7502]
[1717530456397,0.8413249,168.94,168.93,51.1762]
[1717530456809,0.8413249,168.94,168.93,51.3462]
[1717530457312,0.8413249,168.94,168.93,171.3462]
[1717530457604,0.8413249,168.94,168.93,186.7719]
[1717530458711,0.8413249,168.94,168.93,208.9324]
[1717530458892,0.8413249,168.94,168.93,215.5031]
[1717530459202,0.8413249,168.94,168.93,224.2641]
[1717530463611,0.8413249,168.94,168.93,217.4941]
[1717530463901,0.8413249,168.94,168.93,224.2641]
[1717530465480,32.26772206,169.06,169.0,2.1892]
[1717530465481,15.13942206,169.06,169.0,2.1892]
[1717530465784,8.9589,169.06,169.02,35.56]
[1717530466218,6.77,169.07,169.02,35.56]
[1717530466583,8.9584,169.07,169.02,35.56]
[1717530467008,6.77,169.06,169.03,35.56]
[1717530467885,2.1884,169.07,169.01,37.7492]
[1717530468198,8.9584,169.07,169.01,42.33]
[1717530468411,2.1883,169.08,169.01,44.5191]
[1717530468713,6.77,169.07,169.01,44.5191]
[1717530470615,8.9584,169.07,169.01,44.5191]
[1717530471011,2.1884,169.07,169.01,44.5191]
[1717530471512,8.9583,169.08,169.01,44.5191]
[1717530472107,2.1883,169.08,169.01,44.5191]
[1717530472290,8.9583,169.08,169.01,44.5191]
[1717530472615,8.9583,169.08,169.01,37.7491]
[1717530472914,8.9583,169.08,169.01,44.5191]
[1717530473100,8.9583,169.08,169.02,2.189]
[1717530474825,8.9586,169.06,169.02,35.56]
[1717530474991,6.77,169.06,169.02,35.56]
[1717530475906,6.77,169.06,169.01,37.7492]
[1717530476141,6.77,169.06,169.01,35.56]
[1717530476511,6.77,169.06,169.01,37.7491]
[1717530477936,6.77,169.06,169.01,35.56]
[1717530478124,6.77,169.04,168.95,8.7597]
[1717530478432,6.77,169.04,168.94,129.23737336]
[1717530478433,6.77,169.01,168.96,35.56]
[1717530478606,6.77,169.0,168.96,35.56]
[1717530478805,6.77,169.0,168.96,37.7498]
[1717530479034,6.77,169.0,168.96,2.1898]
[1717530479231,6.77,169.0,168.97,2.1897]
[1717530480029,6.77,169.03,168.99,2.1894]
[1717530480219,6.77,169.05,169.0,37.7493]
[1717530480421,6.77,169.05,169.0,35.56]
[1717530480726,8.9588,169.04,169.0,35.56]
[1717530481025,6.77,169.04,169.0,35.56]
[1717530481203,6.77,169.04,169.01,35.56]
[1717530482003,6.77,169.02,169.01,35.56]
[1717530482329,6.77,169.02,168.97,2.1896]
[1717530483140,6.77,169.02,168.98,2.1896]
[1717530485036,6.185,169.02,168.96,35.56]
[1717530485241,6.77,168.98,168.96,35.56]
[1717530485733,6.77,168.99,168.96,35.56]
[1717530486123,6.77,168.99,168.97,35.56]
[1717530486317,6.77,169.01,168.97,35.56]
[1717530486631,2.1889,169.04,168.98,2.1896]
[1717530486838,2.1887,169.05,168.99,2.1894]
[1717530487208,6.77,169.03,168.99,2.1894]
[1717530487530,6.77,169.03,168.98,2.1895]
[1717530488534,6.77,169.02,168.98,2.1895]
[1717530490314,2.1887,169.05,168.99,2.1894]
[1717530490541,6.77,169.03,168.99,2.1894]
[1717530491320,6.77,169.03,168.98,2.1895]
[1717530492546,6.77,169.03,168.99,2.1894]
[1717530492955,6.77,169.03,168.98,2.1895]
[1717530493722,6.77,169.02,168.98,2.1895]
[1717530494243,2.1892,169.01,168.97,35.56]
[1717530494409,6.77,169.0,168.97,35.56]
[1717530495015,6.77,168.99,168.97,35.56]
[1717530495437,6.77,168.99,168.95,2.1899]
[1717530495862,6.77,168.99,168.96,2.1898]
[1717530496155,6.77,168.99,168.95,2.1899]
[1717530496448,2.1893,169.0,168.95,35.56]
[1717530496758,6.77,168.98,168.95,35.56]
[1717530497526,6.77,168.97,168.95,35.56]
[1717530498626,6.77,168.97,168.93,2.1902]
[1717530499239,6.77,168.96,168.93,2.1902]
[1717530499754,6.77,168.96,168.93,2.1901]
[1717530501064,6.77,168.96,168.94,2.1901]
[1717530501758,6.77,168.96,168.93,2.1902]
[1717530502252,6.77,168.96,168.92,2.1903]
[1717530502440,6.77,168.96,168.93,2.1902]
[1717530502846,6.77,168.96,168.92,2.1903]
[1717530503042,6.77,168.93,168.89,35.56]
[1717530503228,6.77,168.92,168.9,2.1906]
[1717530503436,6.77,168.93,168.9,2.1906]
[1717530504940,6.77,168.93,168.91,2.1904]
[1717530505645,6.77,168.93,168.9,2.1905]
[1717530506169,6.77,168.93,168.91,2.1905]
[1717530506482,6.77,168.93,168.9,2.1905]
[1717530507192,6.77,168.93,168.91,2.1905]
[1717530509287,2.1897,168.97,168.91,2.1905]
[1717530509288,6.77,168.94,168.91,2.1905]
[1717530509993,2.1897,168.97,168.91,2.1905]
[1717530510162,6.77,168.94,168.91,2.1905]
[1717530510991,6.77,168.93,168.9,2.1905]
[1717530511487,6.77,168.93,168.91,2.1905]
[1717530511690,2.1898,168.97,168.92,2.1903]
[1717530511859,6.77,168.93,168.91,2.1904]
[1717530512185,6.77,168.94,168.91,2.1904]
[1717530513873,6.77,168.94,168.92,2.1903]
[1717530514197,6.77,168.95,168.92,2.1903]
[1717530514972,6.77,168.95,168.91,2.1904]
[1717530515279,6.77,168.94,168.91,2.1904]
[1717530517777,6.77,168.94,168.9,2.1905]
[1717530518372,6.77,168.94,168.91,2.1905]
[1717530518672,6.77,168.93,168.9,2.1905]
[1717530519777,6.77,168.92,168.9,2.1905]
[1717530520689,6.77,168.92,168.9,35.56]
[1717530520908,6.77,168.92,168.9,37.7506]
[1717530521611,6.77,168.92,168.91,2.1905]
[1717530522000,6.77,168.92,168.9,2.1906]
[1717530522204,6.77,168.92,168.89,35.56]
[1717530522388,6.77,168.93,168.91,2.1904]
[1717530523518,6.77,168.93,168.91,2.1904]
[1717530524597,6.77,168.93,168.89,39.9415]
[1717530524819,6.77,168.93,168.91,2.1904]
[1717530525017,6.77,168.93,168.92,2.1903]
[1717530525394,6.77,168.94,168.91,2.1904]
[1717530525694,6.185,168.98,168.92,2.1903]
[1717530525695,6.77,168.95,168.92,2.1903]
[1717530525891,6.77,168.96,168.93,2.1902]
[1717530526919,6.77,168.96,168.92,2.1903]
[1717530527718,6.77,168.96,168.91,35.56]
[1717530528224,6.77,168.96,168.92,2.1903]
[1717530528916,6.77,168.95,168.92,2.1903]
[1717530529498,6.69896887,168.95,168.92,2.1903]
[1717530530204,6.69896887,168.95,168.91,37.7504]
[1717530530404,6.69896887,168.95,168.92,35.56]
[1717530531018,6.69896887,168.95,168.92,37.7503]
[1717530531324,6.77,168.94,168.92,35.56]
[1717530531532,6.77,168.95,168.91,2.1904]
[1717530531903,6.77,168.95,168.92,2.1903]
[1717530532102,6.77,168.95,168.91,2.1903]
[1717530532608,6.77,168.95,168.92,2.1903]
[1717530532806,2.1898,168.97,168.92,2.1903]
[1717530533116,6.77,168.95,168.92,2.1903]
[1717530534936,6.77,168.96,168.92,2.1903]
[1717530535113,2.1896,168.98,168.93,35.56]
[1717530535317,8.9596,168.98,168.93,59.1422]
[1717530535716,6.77,168.98,168.93,59.1422]
[1717530535933,2.1894,169.0,168.95,2.1899]
[1717530536141,6.77,168.98,168.94,2.19]
[1717530536347,6.77,168.98,168.95,2.1899]
[1717530536551,6.77,168.98,168.94,2.19]
[1717530539638,8.9594,168.99,168.94,2.19]
[1717530539870,2.1892,169.01,168.96,2.1897]
[1717530540158,6.77,168.99,168.95,35.56]
[1717530540333,2.1891,169.02,168.97,2.1897]
[1717530540530,2.1891,169.02,168.98,1.77450576]
[1717530540726,2.1891,169.02,168.97,2.1896]
[1717530540976,6.77,169.01,168.97,2.1896]
[1717530541258,6.77,169.0,168.95,35.56]
[1717530541560,8.7563,169.03,168.95,35.56]
[1717530541764,6.77,169.04,168.96,35.56]
[1717530541765,6.77,168.98,168.96,35.56]
[1717530542649,6.77,168.98,168.95,2.1899]
[1717530542852,6.77,168.97,168.94,35.56]
[1717530543057,6.77,168.96,168.94,35.56]
[1717530543359,6.77,168.95,168.94,35.56]
[1717530543535,6.77,168.95,168.92,2.1903]
[1717530546945,2.1895,168.99,168.94,2.1901]
[1717530547180,6.77,168.98,168.94,2.1901]
[1717530547540,6.77,168.98,168.95,2.1899]
[1717530547743,2.1892,169.01,168.96,2.1897]
[1717530547958,6.77,169.0,168.96,2.1897]
[1717530548163,4.3781,169.03,168.96,2.1897]
[1717530548367,6.77,169.0,168.96,2.1897]
[1717530548764,2.189,169.03,168.98,2.1894]
[1717530548970,6.77,169.01,168.98,2.1894]
[1717530550367,2.189,169.03,168.98,2.1894]
[1717530550752,6.77,169.02,168.98,2.1894]
[1717530553264,2.1887,169.05,168.98,35.56]
[1717530553467,6.0497,169.1,169.0,35.56]
[1717530553771,2.1883,169.08,169.02,2.189]
[1717530553967,4.3763,169.1,169.03,35.56]
[1717530554177,16.1571249,169.11,169.03,37.7489]
[1717530554355,2.1883,169.08,169.03,37.7489]
[1717530554560,2.1882,169.09,169.03,57.2558]
[1717530554858,8.9583,169.08,169.03,57.2558]
[1717530555185,8.9585,169.07,169.01,37.7491]
[1717530555358,2.1885,169.07,169.02,2.189]
[1717530555558,4.3762,169.1,169.01,42.0739]
[1717530555756,6.77,169.07,169.03,35.56]
[1717530556171,8.9584,169.07,169.03,35.56]
[1717530557480,6.77,169.07,169.03,35.56]
[1717530558078,6.77,169.07,169.03,37.7489]
[1717530558256,6.77,169.07,169.03,44.3163]
[1717530559176,6.77,169.07,169.03,60.4578]
[1717530561282,6.77,169.06,169.03,58.2689]
[1717530561663,2.1884,169.07,169.03,58.2689]
[1717530561881,6.77,169.06,169.03,58.2689]
[1717530562195,6.77,169.05,169.03,58.2689]
[1717530563484,6.77,169.05,169.03,60.4578]
[1717530563684,6.77,169.06,169.03,60.4578]
[1717530563985,2.1883,169.08,169.04,58.0717]
[1717530564186,6.77,169.07,169.04,58.0717]
[1717530564561,6.77,169.07,169.04,41.7029]
[1717530564761,4.3761,169.1,169.04,35.56]
[1717530564762,6.77,169.06,169.04,35.56]
[1717530564978,6.77,169.06,169.03,35.56]
[1717530566511,6.77,169.04,169.03,35.56]
[1717530567414,8.9588,169.04,168.99,44.1827]
[1717530567718,6.77,169.0,168.99,35.56]
[1717530568506,6.77,169.0,168.98,2.1895]
[1717530569412,6.77,168.99,168.97,37.7496]
[1717530569577,6.77,168.98,168.97,2.1896]
[1717530569982,6.77,168.98,168.96,35.56]
[1717530570193,6.77,168.97,168.94,37.75]
[1717530570402,6.77,168.95,168.94,35.56]
[1717530571712,6.77,168.95,168.91,35.56]
[1717530572002,6.77,168.92,168.91,37.7505]
[1717530572814,6.77,168.92,168.91,2.1905]
[1717530575710,6.77,168.92,168.91,35.56]
[1717530576794,6.77,168.92,168.9,2.1905]
[1717530576993,6.77,168.91,168.9,2.1905]
[1717530579229,6.77,168.92,168.9,2.1905]
[1717530579401,6.77,168.91,168.89,2.1907]
[1717530579725,6.77,168.9,168.89,2.1907]
[1717530580328,6.77,168.9,168.87,35.56]
[1717530580508,6.77,168.88,168.87,35.56]
[1717530581420,6.77,168.88,168.84,37.7513]
[1717530581720,6.77,168.85,168.84,37.7514]
[1717530582227,6.77,168.85,168.84,2.1914]
[1717530582535,6.77,168.85,168.82,35.56]
[1717530582826,6.77,168.83,168.82,35.56]
[1717530583232,6.77,168.83,168.78,22.5047]
[1717530583233,6.77,168.83,168.79,37.752]
[1717530583528,6.77,168.81,168.8,2.1918]
[1717530584303,6.77,168.81,168.8,37.7518]
[1717530584507,6.77,168.81,168.8,35.56]
[1717530585144,6.77,168.81,168.8,37.7519]
[1717530585433,6.77,168.81,168.8,2.1919]
[1717530586326,2.1913,168.85,168.8,2.1919]
[1717530586527,6.77,168.81,168.8,2.1919]
[1717530599356,8.9618,168.81,168.78,35.56]
[1717530599657,6.77,168.79,168.78,37.7521]
[1717530600038,6.77,168.79,168.78,35.56]
[1717530600233,6.0175,168.87,168.78,35.56]
[1717530600234,4.3824,168.86,168.78,35.56]
[1717530600433,2.1914,168.84,168.8,2.1918]
[1717530600760,6.77,168.81,168.79,2.192]
[1717530601242,6.77,168.81,168.8,2.1919]
[1717530601555,6.77,168.81,168.79,2.1919]
[1717530602160,2.1914,168.84,168.8,2.1918]
[1717530602455,12.5908,168.87,168.81,35.56]
[1717530602456,2.1911,168.87,168.81,35.56]
[1717530602753,4.3815,168.89,168.81,35.56]
[1717530602754,6.77,168.85,168.83,35.56]
[1717530602957,6.77,168.85,168.84,2.1914]
[1717530603764,6.77,168.85,168.82,37.7516]
[1717530603934,6.77,168.84,168.82,37.7516]
[1717530604245,6.77,168.84,168.82,35.56]
[1717530604445,6.77,168.83,168.82,35.56]
[1717530604949,6.77,168.83,168.76,2.1924]
[1717530605259,6.77,168.78,168.74,4.3852]
[1717530605476,6.77,168.78,168.76,2.1923]
[1717530605958,6.77,168.78,168.77,2.1923]
[1717530606327,6.77,168.78,168.74,35.56]
[1717530606529,6.77,168.76,168.74,35.56]
[1717530606732,6.77,168.75,168.74,35.56]
[1717530607466,6.77,168.75,168.73,35.56]
[1717530608258,6.77,168.74,168.73,35.56]
[1717530608955,2.1922,168.78,168.73,37.7528]
[1717530609129,6.77,168.75,168.74,2.1927]
[1717530609329,6.77,168.75,168.73,35.56]
[1717530609553,6.77,168.75,168.73,2.1927]
[1717530609758,6.77,168.75,168.73,37.7527]
[1717530610550,6.77,168.75,168.74,2.1927]
[1717530611058,6.77,168.75,168.73,2.1927]
[1717530611570,6.77,168.74,168.72,35.56]
[1717530611769,6.77,168.73,168.7,2.1932]
[1717530611975,6.77,168.71,168.7,2.1932]
[1717530612575,6.77,168.72,168.71,2.1931]
[1717530612763,6.77,168.72,168.7,2.1931]
[1717530612956,6.77,168.71,168.7,2.1931]
[1717530613473,6.77,168.71,168.69,2.1933]
[1717530613681,6.77,168.7,168.69,2.1933]
[1717530615788,6.77,168.71,168.7,2.1932]
[1717530617674,6.77,168.71,168.69,2.1933]
[1717530619263,6.77,168.71,168.7,2.1932]
[1717530619967,2.1927,168.74,168.7,2.1932]
[1717530620181,6.77,168.71,168.7,2.1932]
[1717530620681,6.77,168.74,168.69,35.56]
[1717530620884,6.77,168.74,168.71,2.193]
[1717530621369,6.77,168.74,168.69,39.9466]
[1717530621370,6.77,168.73,168.7,2.1931]
[1717530621888,6.77,168.71,168.7,2.1931]
[1717530623156,6.77,168.78,168.72,2.1929]
[1717530623378,2.1922,168.78,168.7,42.1396]
[1717530623570,6.77,168.75,168.74,2.1926]
[1717530623773,6.77,168.75,168.72,39.9458]
[1717530623774,6.77,168.75,168.73,2.1927]
[1717530623966,6.77,168.75,168.74,2.1927]
[1717530624184,19.7267,168.81,168.72,46.5658]
[1717530624185,4.3837,168.81,168.75,2.1925]
[1717530624395,4.3837,168.81,168.72,46.5658]
[1717530624396,2.1918,168.81,168.76,2.1924]
[1717530624591,6.77,168.78,168.76,2.1924]
[1717530624891,2.1917,168.82,168.77,2.1923]
[1717530625081,6.77,168.8,168.78,2.1922]
[1717530625287,6.17595589,168.85,168.79,2.192]
[1717530625601,6.77,168.8,168.79,2.192]
[1717530625895,6.77,168.8,168.78,2.1921]
[1717530626686,18.92958213,168.87,168.79,2.192]
[1717530626894,2.1913,168.85,168.79,2.192]
[1717530627195,2.1913,168.85,168.8,2.1919]
[1717530627500,2.1911,168.86,168.81,2.1917]
[1717530627685,6.77,168.83,168.8,44.1829]
[1717530628393,8.9615,168.83,168.8,41.9911]
[1717530628704,6.77,168.81,168.77,2.1922]
[1717530629008,6.77,168.79,168.77,2.1922]
[1717530629382,6.77,168.8,168.77,2.1922]
[1717530629611,6.77,168.8,168.78,2.1921]
[1717530629805,6.77,168.8,168.75,35.56]
[1717530629806,6.77,168.8,168.79,2.192]
[1717530629982,6.77,168.81,168.8,2.1919]
[1717530630185,2.1913,168.85,168.8,2.1919]
[1717530630186,6.77,168.82,168.8,2.1919]
[1717530630584,6.17028213,168.87,168.81,2.1917]
[1717530630780,6.77,168.83,168.81,2.1917]
[1717530630984,6.77,168.83,168.8,2.1918]
[1717530633606,6.77,168.83,168.79,37.752]
[1717530633811,6.77,168.82,168.79,37.752]
[1717530634017,6.77,168.82,168.79,35.56]
[1717530634612,6.77,168.81,168.79,35.56]
[1717530634914,6.77,168.8,168.78,35.56]
[1717530635216,6.77,168.79,168.78,35.56]
[1717530635985,6.77,168.79,168.78,37.7522]
[1717530636409,6.77,168.81,168.79,2.192]
[1717530636716,6.77,168.82,168.79,2.192]
[1717530639297,6.77,168.82,168.78,44.3374]
[1717530640217,6.77,168.82,168.79,2.192]
[1717530644207,2.1914,168.84,168.79,2.192]
[1717530644515,6.77,168.82,168.79,2.192]
[1717530645311,8.9617,168.82,168.78,42.1453]
[1717530645494,6.77,168.81,168.78,42.1453]
[1717530646018,6.77,168.81,168.78,44.3374]
[1717530646502,6.77,168.81,168.79,2.192]
[1717530646702,2.1914,168.84,168.79,2.192]
[1717530646905,6.77,168.82,168.79,2.192]
[1717530649135,13.1476,168.86,168.8,35.56]
[1717530649136,2.1915,168.83,168.8,35.56]
[1717530649310,6.77,168.82,168.8,35.56]
[1717530649638,6.77,168.83,168.8,35.56]
[1717530650000,2.1915,168.84,168.8,56.8368]
[1717530650228,6.77,168.84,168.8,59.0287]
[1717530650942,8.9614,168.84,168.8,56.8368]
[1717530652908,2.1915,168.83,168.8,41.6814]
[1717530653109,8.9615,168.83,168.78,37.7521]
[1717530653411,8.9615,168.83,168.78,58.8985]
[1717530653735,6.77,168.82,168.78,58.8985]
[1717530655631,6.77,168.82,168.79,2.192]
[1717530656628,6.77,168.82,168.78,58.8985]
[1717530657452,6.77,168.82,168.79,2.192]
[1717530658740,6.77,168.83,168.79,2.192]
[1717530658925,6.77,168.83,168.8,37.7519]
[1717530659126,2.1915,168.84,168.8,37.7519]
[1717530659354,8.9615,168.84,168.8,37.7519]
[1717530659565,8.9615,168.84,168.8,35.56]
[1717530660432,6.77,168.82,168.8,35.56]
[1717530660751,8.9617,168.82,168.8,35.56]
[1717530661127,6.77,168.82,168.81,35.56]
[1717530662750,6.77,168.83,168.81,35.56]
[1717530663051,2.1913,168.85,168.81,35.56]
[1717530663226,8.9614,168.84,168.79,37.7519]
[1717530663424,8.9614,168.84,168.79,43.9998]
[1717530663844,8.9614,168.84,168.79,59.4071]
[1717530664733,2.1914,168.84,168.79,57.2152]
[1717530664941,6.77,168.84,168.8,2.1919]
[1717530666259,8.9614,168.84,168.79,59.4071]
[1717530666450,8.9614,168.84,168.79,43.9998]